Workbook

Sheet Sheet2
A1: 纳雍县2023年面向社会公开招聘城市社区工作者面试、总成绩及进入体检人员名单
A2: 报考单位名称 | B2: 报考职位代码 | C2: 准考证号 | D2: 姓名 | E2: 笔试成绩 | F2: 笔试成绩职位内排名 | G2: 笔试成绩折算（60%） | H2: 面试考场 | I2: 面试抽签号 | J2: 面试得分 | K2: 面试成绩折算（40%） | L2: 总成绩 | M2: 总成绩职位内排名 | N2: 是否进入体检 | O2: 备注
A3: 纳雍县利园街道 | B3: 01 | C3: 202301122 | D3: 彭勇 | E3: 71.62 | F3: 2 | G3: =E3*0.6 -> 42.97 | H3: 第一面试室 | I3: 9 | J3: 76.40 | K3: =J3*0.4 -> 30.56 | L3: =G3+K3 -> 73.53 | M3: 1 | N3: 是
A4: 纳雍县利园街道 | B4: 01 | C4: 202301004 | D4: 陈国才 | E4: 69.99 | F4: 3 | G4: 41.99 | H4: 第一面试室 | I4: 18 | J4: 76.40 | K4: 30.56 | L4: =G4+K4 -> 72.55 | M4: 2 | N4: 是
A5: 纳雍县利园街道 | B5: 01 | C5: 202301138 | D5: 刘微 | E5: 64.52 | F5: 17 | G5: 38.71 | H5: 第一面试室 | I5: 6 | J5: 84.10 | K5: 33.64 | L5: 72.35 | M5: 3 | N5: 是
A6: 纳雍县利园街道 | B6: 01 | C6: 202301109 | D6: 张倩 | E6: 69.06 | F6: 4 | G6: 41.44 | H6: 第一面试室 | I6: 7 | J6: 76.80 | K6: 30.72 | L6: 72.16 | M6: 4 | N6: 是
A7: 纳雍县利园街道 | B7: 01 | C7: 202301231 | D7: 杨辉 | E7: 68.08 | F7: 5 | G7: 40.85 | H7: 第一面试室 | I7: 29 | J7: 76.50 | K7: 30.60 | L7: 71.45 | M7: 5 | N7: 是
A8: 纳雍县利园街道 | B8: 01 | C8: 202301126 | D8: 唐建琳 | E8: 67.93 | F8: 6 | G8: 40.76 | H8: 第一面试室 | I8: 11 | J8: 74.80 | K8: 29.92 | L8: 70.68 | M8: 6 | N8: 是
A9: 纳雍县利园街道 | B9: 01 | C9: 202301013 | D9: 陈长春 | E9: 64.63 | F9: 16 | G9: 38.78 | H9: 第一面试室 | I9: 31 | J9: 78.40 | K9: 31.36 | L9: 70.14 | M9: 7 | N9: 是
A10: 纳雍县利园街道 | B10: 01 | C10: 202301017 | D10: 饶风贤 | E10: 65.39 | F10: 12 | G10: 39.23 | H10: 第一面试室 | I10: 15 | J10: 77.20 | K10: 30.88 | L10: 70.11 | M10: 8 | N10: 是
A11: 纳雍县利园街道 | B11: 01 | C11: 202301156 | D11: 颜修联 | E11: 66.41 | F11: 8 | G11: 39.85 | H11: 第一面试室 | I11: 23 | J11: 75.10 | K11: 30.04 | L11: 69.89 | M11: 9 | N11: 是
A12: 纳雍县利园街道 | B12: 01 | C12: 202301139 | D12: 汪文文 | E12: 71.96 | F12: 1 | G12: 43.18 | H12: 第一面试室 | I12: 25 | J12: 66.60 | K12: 26.64 | L12: 69.82 | M12: 10 | N12: 是
A13: 纳雍县利园街道 | B13: 01 | C13: 202301048 | D13: 贺春阳 | E13: 65.94 | F13: 10 | G13: 39.56 | H13: 第一面试室 | I13: 22 | J13: 75.50 | K13: 30.20 | L13: 69.76 | M13: 11 | N13: 是
A14: 纳雍县利园街道 | B14: 01 | C14: 202301067 | D14: 陆婧逾 | E14: 63.55 | F14: 25 | G14: 38.13 | H14: 第一面试室 | I14: 13 | J14: 78.30 | K14: 31.32 | L14: 69.45
A15: 纳雍县利园街道 | B15: 01 | C15: 202301135 | D15: 颜丽修 | E15: 64.17 | F15: 19 | G15: 38.50 | H15: 第一面试室 | I15: 2 | J15: 77.10 | K15: 30.84 | L15: 69.34
A16: 纳雍县利园街道 | B16: 01 | C16: 202301140 | D16: 胡磊 | E16: 61.96 | F16: 31 | G16: 37.18 | H16: 第一面试室 | I16: 3 | J16: 80.10 | K16: 32.04 | L16: 69.22
A17: 纳雍县利园街道 | B17: 01 | C17: 202301065 | D17: 陈清 | E17: 64.09 | F17: 20 | G17: 38.45 | H17: 第一面试室 | I17: 21 | J17: 74.70 | K17: 29.88 | L17: 68.33
A18: 纳雍县利园街道 | B18: 01 | C18: 202301079 | D18: 朱泉杰 | E18: 62.64 | F18: 27 | G18: 37.58 | H18: 第一面试室 | I18: 24 | J18: 76.80 | K18: 30.72 | L18: 68.30
A19: 纳雍县利园街道 | B19: 01 | C19: 202301186 | D19: 汤纯达 | E19: 65.08 | F19: 14 | G19: 39.05 | H19: 第一面试室 | I19: 27 | J19: 72.40 | K19: 28.96 | L19: 68.01
A20: 纳雍县利园街道 | B20: 01 | C20: 202301149 | D20: 章小雨 | E20: 64.49 | F20: 18 | G20: 38.69 | H20: 第一面试室 | I20: 4 | J20: 73.00 | K20: 29.20 | L20: 67.89
A21: 纳雍县利园街道 | B21: 01 | C21: 202301095 | D21: 石静悦 | E21: 62.09 | F21: 28 | G21: 37.25 | H21: 第一面试室 | I21: 28 | J21: 76.60 | K21: 30.64 | L21: 67.89
A22: 纳雍县利园街道 | B22: 01 | C22: 202301114 | D22: 翟强 | E22: 64.05 | F22: 21 | G22: 38.43 | H22: 第一面试室 | I22: 8 | J22: 73.60 | K22: 29.44 | L22: 67.87
A23: 纳雍县利园街道 | B23: 01 | C23: 202301134 | D23: 杨雍 | E23: 62.07 | F23: 29 | G23: 37.24 | H23: 第一面试室 | I23: 33 | J23: 75.80 | K23: 30.32 | L23: 67.56
A24: 纳雍县利园街道 | B24: 01 | C24: 202301258 | D24: 向西涛 | E24: 62.97 | F24: 26 | G24: 37.78 | H24: 第一面试室 | I24: 20 | J24: 74.40 | K24: 29.76 | L24: 67.54
A25: 纳雍县利园街道 | B25: 01 | C25: 202301057 | D25: 何慧卿 | E25: 65.97 | F25: 9 | G25: 39.58 | H25: 第一面试室 | I25: 5 | J25: 69.00 | K25: 27.60 | L25: 67.18
A26: 纳雍县利园街道 | B26: 01 | C26: 202301204 | D26: 郝栋梁 | E26: 66.99 | F26: 7 | G26: 40.19 | H26: 第一面试室 | I26: 32 | J26: 67.40 | K26: 26.96 | L26: 67.15
A27: 纳雍县利园街道 | B27: 01 | C27: 202301177 | D27: 蒙妮 | E27: 63.91 | F27: 24 | G27: 38.35 | H27: 第一面试室 | I27: 19 | J27: 70.20 | K27: 28.08 | L27: 66.43
A28: 纳雍县利园街道 | B28: 01 | C28: 202301023 | D28: 王琳 | E28: 61.61 | F28: 32 | G28: 36.97 | H28: 第一面试室 | I28: 30 | J28: 72.60 | K28: 29.04 | L28: 66.01
A29: 纳雍县利园街道 | B29: 01 | C29: 202301112 | D29: 郝娟 | E29: 62.03 | F29: 30 | G29: 37.22 | H29: 第一面试室 | I29: 26 | J29: 71.80 | K29: 28.72 | L29: 65.94
A30: 纳雍县利园街道 | B30: 01 | C30: 202301150 | D30: 刘勇 | E30: 64.03 | F30: 22 | G30: 38.42 | H30: 第一面试室 | I30: 10 | J30: 66.40 | K30: 26.56 | L30: 64.98
A31: 纳雍县利园街道 | B31: 01 | C31: 202301115 | D31: 杨维艳 | E31: 65.02 | F31: 15 | G31: 39.01 | H31: 第一面试室 | I31: 16 | J31: 64.20 | K31: 25.68 | L31: 64.69
A32: 纳雍县利园街道 | B32: 01 | C32: 202301163 | D32: 龙小丹 | E32: 61.56 | F32: 33 | G32: 36.94 | H32: 第一面试室 | I32: 34 | J32: 69.10 | K32: 27.64 | L32: 64.58
A33: 纳雍县利园街道 | B33: 01 | C33: 202301106 | D33: 高粉艳 | E33: 65.51 | F33: 11 | G33: 39.31 | H33: 第一面试室 | I33: 1 | J33: 0.00 | K33: 0.00 | L33: 39.31 | O33: 缺考
A34: 纳雍县利园街道 | B34: 01 | C34: 202301145 | D34: 郭光琴 | E34: 65.10 | F34: 13 | G34: 39.06 | H34: 第一面试室 | I34: 12 | J34: 0.00 | K34: 0.00 | L34: 39.06 | O34: 缺考
A35: 纳雍县利园街道 | B35: 01 | C35: 202301244 | D35: 刘鹏鹏 | E35: 64.02 | F35: 23 | G35: 38.41 | H35: 第一面试室 | I35: 17 | J35: 0.00 | K35: 0.00 | L35: 38.41 | O35: 缺考
A36: 纳雍县利园街道 | B36: 01 | C36: 202301182 | D36: 张娇 | E36: 61.56 | F36: 33 | G36: 36.94 | H36: 第一面试室 | I36: 14 | J36: 0.00 | K36: 0.00 | L36: 36.94 | O36: 缺考
A37: 纳雍县文昌街道 | B37: 02 | C37: 202302203 | D37: 黄悦悦 | E37: 71.54 | F37: 1 | G37: 42.92 | H37: 第二面试室 | I37: 21 | J37: 76.71 | K37: 30.68 | L37: 73.61 | M37: 1 | N37: 是
A38: 纳雍县文昌街道 | B38: 02 | C38: 202302134 | D38: 龙红叶 | E38: 71.06 | F38: 2 | G38: 42.64 | H38: 第二面试室 | I38: 36 | J38: 76.79 | K38: 30.72 | L38: 73.35 | M38: 2 | N38: 是
A39: 纳雍县文昌街道 | B39: 02 | C39: 202302278 | D39: 张维 | E39: 66.54 | F39: 10 | G39: 39.92 | H39: 第二面试室 | I39: 30 | J39: 79.63 | K39: 31.85 | L39: 71.78 | M39: 3 | N39: 是
A40: 纳雍县文昌街道 | B40: 02 | C40: 202302105 | D40: 张成 | E40: 67.02 | F40: 9 | G40: 40.21 | H40: 第二面试室 | I40: 12 | J40: 77.37 | K40: 30.95 | L40: 71.16 | M40: 4 | N40: 是
A41: 纳雍县文昌街道 | B41: 02 | C41: 202302249 | D41: 龙跃银 | E41: 68.53 | F41: 3 | G41: 41.12 | H41: 第二面试室 | I41: 35 | J41: 75.04 | K41: 30.02 | L41: 71.13 | M41: 5 | N41: 是
A42: 纳雍县文昌街道 | B42: 02 | C42: 202302112 | D42: 宋姜玲 | E42: 65.45 | F42: 12 | G42: 39.27 | H42: 第二面试室 | I42: 27 | J42: 79.55 | K42: 31.82 | L42: 71.09 | M42: 6 | N42: 是
A43: 纳雍县文昌街道 | B43: 02 | C43: 202302132 | D43: 郭晓蝶 | E43: 63.63 | F43: 17 | G43: 38.18 | H43: 第二面试室 | I43: 13 | J43: 81.98 | K43: 32.79 | L43: 70.97 | M43: 7 | N43: 是
A44: 纳雍县文昌街道 | B44: 02 | C44: 202302092 | D44: 史垚 | E44: 67.53 | F44: 7 | G44: 40.52 | H44: 第二面试室 | I44: 17 | J44: 75.49 | K44: 30.20 | L44: 70.71 | M44: 8 | N44: 是
A45: 纳雍县文昌街道 | B45: 02 | C45: 202302133 | D45: 代佳靖 | E45: 63.49 | F45: 19 | G45: 38.09 | H45: 第二面试室 | I45: 4 | J45: 81.54 | K45: 32.62 | L45: 70.71 | M45: 9 | N45: 是
A46: 纳雍县文昌街道 | B46: 02 | C46: 202302170 | D46: 刘美林 | E46: 62.18 | F46: 27 | G46: 37.31 | H46: 第二面试室 | I46: 18 | J46: 81.44 | K46: 32.58 | L46: 69.88 | M46: 10 | N46: 是
A47: 纳雍县文昌街道 | B47: 02 | C47: 202302189 | D47: 彭孟媛 | E47: 67.08 | F47: 8 | G47: 40.25 | H47: 第二面试室 | I47: 28 | J47: 74.09 | K47: 29.64 | L47: 69.88 | M47: 11 | N47: 是
A48: 纳雍县文昌街道 | B48: 02 | C48: 202302096 | D48: 王首焕 | E48: 61.54 | F48: 34 | G48: 36.92 | H48: 第二面试室 | I48: 32 | J48: 81.87 | K48: 32.75 | L48: 69.67 | M48: 12 | N48: 是
A49: 纳雍县文昌街道 | B49: 02 | C49: 202302223 | D49: 刘鑫 | E49: 65.02 | F49: 15 | G49: 39.01 | H49: 第二面试室 | I49: 14 | J49: 75.78 | K49: 30.31 | L49: 69.32 | M49: 13 | N49: 是
A50: 纳雍县文昌街道 | B50: 02 | C50: 202302315 | D50: 张华阳 | E50: 63.16 | F50: 22 | G50: 37.90 | H50: 第二面试室 | I50: 31 | J50: 78.25 | K50: 31.30 | L50: 69.20
A51: 纳雍县文昌街道 | B51: 02 | C51: 202302076 | D51: 夏丽琴 | E51: 65.11 | F51: 14 | G51: 39.07 | H51: 第二面试室 | I51: 34 | J51: 75.31 | K51: 30.12 | L51: 69.19
A52: 纳雍县文昌街道 | B52: 02 | C52: 202302131 | D52: 刘浪 | E52: 66.07 | F52: 11 | G52: 39.64 | H52: 第二面试室 | I52: 20 | J52: 72.74 | K52: 29.10 | L52: 68.74
A53: 纳雍县文昌街道 | B53: 02 | C53: 202302186 | D53: 石钦 | E53: 61.97 | F53: 31 | G53: 37.18 | H53: 第二面试室 | I53: 8 | J53: 78.47 | K53: 31.39 | L53: 68.57
A54: 纳雍县文昌街道 | B54: 02 | C54: 202302099 | D54: 顾淞萍 | E54: 61.08 | F54: 36 | G54: 36.65 | H54: 第二面试室 | I54: 15 | J54: 79.62 | K54: 31.85 | L54: 68.50
A55: 纳雍县文昌街道 | B55: 02 | C55: 202302072 | D55: 赵芳 | E55: 63.48 | F55: 20 | G55: 38.09 | H55: 第二面试室 | I55: 40 | J55: 75.57 | K55: 30.23 | L55: 68.32
A56: 纳雍县文昌街道 | B56: 02 | C56: 202302119 | D56: 张鹏远 | E56: 67.59 | F56: 6 | G56: 40.55 | H56: 第二面试室 | I56: 26 | J56: 69.28 | K56: 27.71 | L56: 68.27
A57: 纳雍县文昌街道 | B57: 02 | C57: 202302070 | D57: 李娟 | E57: 63.14 | F57: 23 | G57: 37.88 | H57: 第二面试室 | I57: 38 | J57: 75.35 | K57: 30.14 | L57: 68.02
A58: 纳雍县文昌街道 | B58: 02 | C58: 202302208 | D58: 简倩 | E58: 68.52 | F58: 4 | G58: 41.11 | H58: 第二面试室 | I58: 33 | J58: 66.89 | K58: 26.76 | L58: 67.87
A59: 纳雍县文昌街道 | B59: 02 | C59: 202302058 | D59: 杨平 | E59: 61.02 | F59: 38 | G59: 36.61 | H59: 第二面试室 | I59: 3 | J59: 76.92 | K59: 30.77 | L59: 67.38
A60: 纳雍县文昌街道 | B60: 02 | C60: 202302104 | D60: 张应江 | E60: 62.51 | F60: 25 | G60: 37.51 | H60: 第二面试室 | I60: 19 | J60: 74.32 | K60: 29.73 | L60: 67.23
A61: 纳雍县文昌街道 | B61: 02 | C61: 202302043 | D61: 谢维维 | E61: 63.52 | F61: 18 | G61: 38.11 | H61: 第二面试室 | I61: 1 | J61: 72.61 | K61: 29.04 | L61: 67.16
A62: 纳雍县文昌街道 | B62: 02 | C62: 202302056 | D62: 郭梅 | E62: 62.68 | F62: 24 | G62: 37.61 | H62: 第二面试室 | I62: 6 | J62: 73.59 | K62: 29.44 | L62: 67.04
A63: 纳雍县文昌街道 | B63: 02 | C63: 202302241 | D63: 李力 | E63: 65.44 | F63: 13 | G63: 39.26 | H63: 第二面试室 | I63: 10 | J63: 69.04 | K63: 27.62 | L63: 66.88
A64: 纳雍县文昌街道 | B64: 02 | C64: 202302291 | D64: 姜昕颉 | E64: 63.44 | F64: 21 | G64: 38.06 | H64: 第二面试室 | I64: 11 | J64: 70.88 | K64: 28.35 | L64: 66.42
A65: 纳雍县文昌街道 | B65: 02 | C65: 202302311 | D65: 李勇 | E65: 61.61 | F65: 32 | G65: 36.97 | H65: 第二面试室 | I65: 37 | J65: 73.13 | K65: 29.25 | L65: 66.22
A66: 纳雍县文昌街道 | B66: 02 | C66: 202302327 | D66: 杨曜成 | E66: 62.51 | F66: 26 | G66: 37.51 | H66: 第二面试室 | I66: 5 | J66: 71.32 | K66: 28.53 | L66: 66.03
A67: 纳雍县文昌街道 | B67: 02 | C67: 202302149 | D67: 陈煜 | E67: 62.02 | F67: 30 | G67: =E67*0.6 -> 37.21 | H67: 第二面试室 | I67: 7 | J67: 71.91 | K67: =J67*0.4 -> 28.76 | L67: =G67+K67 -> 65.98
A68: 纳雍县文昌街道 | B68: 02 | C68: 202302080 | D68: 姚文艺 | E68: 61.49 | F68: 35 | G68: 36.89 | H68: 第二面试室 | I68: 25 | J68: 72.50 | K68: 29.00 | L68: 65.89
A69: 纳雍县文昌街道 | B69: 02 | C69: 202302007 | D69: 李莎 | E69: 60.55 | F69: 39 | G69: 36.33 | H69: 第二面试室 | I69: 39 | J69: 73.47 | K69: 29.39 | L69: 65.72
A70: 纳雍县文昌街道 | B70: 02 | C70: 202302214 | D70: 陈前锋 | E70: 62.06 | F70: 29 | G70: 37.24 | H70: 第二面试室 | I70: 29 | J70: 71.17 | K70: 28.47 | L70: 65.70
A71: 纳雍县文昌街道 | B71: 02 | C71: 202302038 | D71: 李仙 | E71: 61.06 | F71: 37 | G71: 36.64 | H71: 第二面试室 | I71: 24 | J71: 72.65 | K71: 29.06 | L71: 65.70
A72: 纳雍县文昌街道 | B72: 02 | C72: 202302102 | D72: 徐君燕 | E72: 63.98 | F72: 16 | G72: 38.39 | H72: 第二面试室 | I72: 23 | J72: 68.18 | K72: 27.27 | L72: 65.66
A73: 纳雍县文昌街道 | B73: 02 | C73: 202302063 | D73: 宋敏 | E73: 62.07 | F73: 28 | G73: 37.24 | H73: 第二面试室 | I73: 22 | J73: 68.62 | K73: 27.45 | L73: 64.69
A74: 纳雍县文昌街道 | B74: 02 | C74: 202302265 | D74: 张玉竹 | E74: 61.58 | F74: 33 | G74: 36.95 | H74: 第二面试室 | I74: 9 | J74: 69.10 | K74: 27.64 | L74: 64.59
A75: 纳雍县文昌街道 | B75: 02 | C75: 202302106 | D75: 张荫娥 | E75: 67.65 | F75: 5 | G75: 40.59 | H75: 第二面试室 | I75: 2 | J75: 0.00 | K75: 0.00 | L75: 40.59 | O75: 缺考
A76: 纳雍县文昌街道 | B76: 02 | C76: 202302306 | D76: 任松 | E76: 60.55 | F76: 39 | G76: 36.33 | H76: 第二面试室 | I76: 16 | J76: 0.00 | K76: 0.00 | L76: 36.33 | O76: 缺考
A77: 纳雍县居仁街道 | B77: 03 | C77: 202303149 | D77: 卢丽杰 | E77: 72.67 | F77: 1 | G77: 43.60 | H77: 第三面试室 | I77: 5 | J77: 79.89 | K77: 31.96 | L77: 75.56 | M77: 1 | N77: 是
A78: 纳雍县居仁街道 | B78: 03 | C78: 202303285 | D78: 勾齐娇 | E78: 71.56 | F78: 2 | G78: 42.94 | H78: 第三面试室 | I78: 35 | J78: 79.50 | K78: 31.80 | L78: 74.74 | M78: 2 | N78: 是
A79: 纳雍县居仁街道 | B79: 03 | C79: 202303268 | D79: 代凤 | E79: 69.63 | F79: 3 | G79: 41.78 | H79: 第三面试室 | I79: 23 | J79: 76.23 | K79: 30.49 | L79: 72.27 | M79: 3 | N79: 是
A80: 纳雍县居仁街道 | B80: 03 | C80: 202303071 | D80: 史亚 | E80: 68.99 | F80: 4 | G80: 41.39 | H80: 第三面试室 | I80: 1 | J80: 75.48 | K80: 30.19 | L80: 71.59 | M80: 4 | N80: 是
A81: 纳雍县居仁街道 | B81: 03 | C81: 202303093 | D81: 谌贵香 | E81: 66.06 | F81: 6 | G81: 39.64 | H81: 第三面试室 | I81: 19 | J81: 79.37 | K81: 31.75 | L81: 71.38 | M81: 5 | N81: 是
A82: 纳雍县居仁街道 | B82: 03 | C82: 202303185 | D82: 郭青华 | E82: 66.08 | F82: 5 | G82: 39.65 | H82: 第三面试室 | I82: 14 | J82: 78.51 | K82: 31.40 | L82: 71.05 | M82: 6 | N82: 是
A83: 纳雍县居仁街道 | B83: 03 | C83: 202303023 | D83: 柯娟 | E83: 64.02 | F83: 9 | G83: 38.41 | H83: 第三面试室 | I83: 12 | J83: 77.06 | K83: 30.82 | L83: 69.24 | M83: 7 | N83: 是
A84: 纳雍县居仁街道 | B84: 03 | C84: 202303213 | D84: 戴欢欢 | E84: 64.48 | F84: 8 | G84: 38.69 | H84: 第三面试室 | I84: 4 | J84: 75.67 | K84: 30.27 | L84: 68.96 | M84: 8 | N84: 是
A85: 纳雍县居仁街道 | B85: 03 | C85: 202303055 | D85: 何娅 | E85: 62.97 | F85: 14 | G85: 37.78 | H85: 第三面试室 | I85: 26 | J85: 77.91 | K85: 31.16 | L85: 68.95 | M85: 9 | N85: 是
A86: 纳雍县居仁街道 | B86: 03 | C86: 202303002 | D86: 宋艳 | E86: 62.58 | F86: 18 | G86: 37.55 | H86: 第三面试室 | I86: 34 | J86: 77.58 | K86: 31.03 | L86: 68.58 | M86: 10 | N86: 是
A87: 纳雍县居仁街道 | B87: 03 | C87: 202303041 | D87: 方冬琴 | E87: 63.47 | F87: 11 | G87: 38.08 | H87: 第三面试室 | I87: 9 | J87: 75.10 | K87: 30.04 | L87: 68.12 | M87: 11 | N87: 是
A88: 纳雍县居仁街道 | B88: 03 | C88: 202303229 | D88: 詹琴 | E88: 63.46 | F88: 12 | G88: 38.08 | H88: 第三面试室 | I88: 2 | J88: 75.05 | K88: 30.02 | L88: 68.10 | M88: 12 | N88: 是
A89: 纳雍县居仁街道 | B89: 03 | C89: 202303160 | D89: 颜丽方 | E89: 61.55 | F89: 23 | G89: 36.93 | H89: 第三面试室 | I89: 24 | J89: 77.76 | K89: 31.10 | L89: 68.03
A90: 纳雍县居仁街道 | B90: 03 | C90: 202303139 | D90: 龙鑫 | E90: 62.01 | F90: 21 | G90: 37.21 | H90: 第三面试室 | I90: 11 | J90: 77.00 | K90: 30.80 | L90: 68.01
A91: 纳雍县居仁街道 | B91: 03 | C91: 202303237 | D91: 肖潇 | E91: 62.94 | F91: 15 | G91: 37.76 | H91: 第三面试室 | I91: 31 | J91: 75.26 | K91: 30.10 | L91: 67.87
A92: 纳雍县居仁街道 | B92: 03 | C92: 202303136 | D92: 丁胡令 | E92: 60.05 | F92: 35 | G92: 36.03 | H92: 第三面试室 | I92: 20 | J92: 78.98 | K92: 31.59 | L92: 67.62
A93: 纳雍县居仁街道 | B93: 03 | C93: 202303200 | D93: 李倩 | E93: 65.64 | F93: 7 | G93: 39.38 | H93: 第三面试室 | I93: 18 | J93: 70.33 | K93: 28.13 | L93: 67.52
A94: 纳雍县居仁街道 | B94: 03 | C94: 202303128 | D94: 卢林屿 | E94: 61.00 | F94: 28 | G94: 36.60 | H94: 第三面试室 | I94: 7 | J94: 77.14 | K94: 30.86 | L94: 67.46
A95: 纳雍县居仁街道 | B95: 03 | C95: 202303013 | D95: 刘丽 | E95: 62.10 | F95: 20 | G95: 37.26 | H95: 第三面试室 | I95: 30 | J95: 75.46 | K95: 30.18 | L95: 67.44
A96: 纳雍县居仁街道 | B96: 03 | C96: 202303101 | D96: 徐高 | E96: 61.07 | F96: 25 | G96: 36.64 | H96: 第三面试室 | I96: 29 | J96: 76.94 | K96: 30.78 | L96: 67.42
A97: 纳雍县居仁街道 | B97: 03 | C97: 202303105 | D97: 熊丽 | E97: 60.48 | F97: 32 | G97: 36.29 | H97: 第三面试室 | I97: 33 | J97: 77.79 | K97: 31.12 | L97: 67.40
A98: 纳雍县居仁街道 | B98: 03 | C98: 202303083 | D98: 王小芳 | E98: 61.05 | F98: 26 | G98: 36.63 | H98: 第三面试室 | I98: 25 | J98: 76.60 | K98: 30.64 | L98: 67.27
A99: 纳雍县居仁街道 | B99: 03 | C99: 202303001 | D99: 颜灿 | E99: 61.01 | F99: 27 | G99: 36.61 | H99: 第三面试室 | I99: 32 | J99: 76.66 | K99: 30.66 | L99: 67.27
A100: 纳雍县居仁街道 | B100: 03 | C100: 202303159 | D100: 王甜 | E100: 61.51 | F100: 24 | G100: 36.91 | H100: 第三面试室 | I100: 13 | J100: 75.86 | K100: 30.34 | L100: 67.25
A101: 纳雍县居仁街道 | B101: 03 | C101: 202303259 | D101: 方顺 | E101: 60.55 | F101: 30 | G101: 36.33 | H101: 第三面试室 | I101: 21 | J101: 77.25 | K101: 30.90 | L101: 67.23
A102: 纳雍县居仁街道 | B102: 03 | C102: 202303117 | D102: 黄兴发 | E102: 61.57 | F102: 22 | G102: 36.94 | H102: 第三面试室 | I102: 22 | J102: 74.99 | K102: 30.00 | L102: 66.94
A103: 纳雍县居仁街道 | B103: 03 | C103: 202303111 | D103: 卢宣 | E103: 60.14 | F103: 34 | G103: 36.08 | H103: 第三面试室 | I103: 36 | J103: 76.99 | K103: 30.80 | L103: 66.88
A104: 纳雍县居仁街道 | B104: 03 | C104: 202303184 | D104: 李娥 | E104: 60.48 | F104: 33 | G104: 36.29 | H104: 第三面试室 | I104: 3 | J104: 76.19 | K104: 30.48 | L104: 66.76
A105: 纳雍县居仁街道 | B105: 03 | C105: 202303072 | D105: 徐丽 | E105: 62.61 | F105: 16 | G105: 37.57 | H105: 第三面试室 | I105: 6 | J105: 72.87 | K105: 29.15 | L105: 66.71
A106: 纳雍县居仁街道 | B106: 03 | C106: 202303131 | D106: 贺春莉 | E106: 60.53 | F106: 31 | G106: 36.32 | H106: 第三面试室 | I106: 8 | J106: 74.93 | K106: 29.97 | L106: 66.29
A107: 纳雍县居仁街道 | B107: 03 | C107: 202303027 | D107: 李杨鲁 | E107: 59.55 | F107: 36 | G107: 35.73 | H107: 第三面试室 | I107: 16 | J107: 74.38 | K107: 29.75 | L107: 65.48
A108: 纳雍县居仁街道 | B108: 03 | C108: 202303088 | D108: 张栎 | E108: 63.48 | F108: 10 | G108: 38.09 | H108: 第三面试室 | I108: 27 | J108: 0.00 | K108: 0.00 | L108: 38.09 | O108: 缺考
A109: 纳雍县居仁街道 | B109: 03 | C109: 202303129 | D109: 刘清 | E109: 63.13 | F109: 13 | G109: 37.88 | H109: 第三面试室 | I109: 28 | J109: 0.00 | K109: 0.00 | L109: 37.88 | O109: 缺考
A110: 纳雍县居仁街道 | B110: 03 | C110: 202303006 | D110: 王祥 | E110: 62.59 | F110: 17 | G110: 37.55 | H110: 第三面试室 | I110: 15 | J110: 0.00 | K110: 0.00 | L110: 37.55 | O110: 缺考
A111: 纳雍县居仁街道 | B111: 03 | C111: 202303170 | D111: 李俊身 | E111: 62.49 | F111: 19 | G111: 37.49 | H111: 第三面试室 | I111: 10 | J111: 0.00 | K111: 0.00 | L111: 37.49 | O111: 缺考
A112: 纳雍县居仁街道 | B112: 03 | C112: 202303053 | D112: 吴寻 | E112: 60.65 | F112: 29 | G112: 36.39 | H112: 第三面试室 | I112: 17 | J112: 0.00 | K112: 0.00 | L112: 36.39 | O112: 违纪
A113: 纳雍县珙桐街道 | B113: 04 | C113: 202304160 | D113: 李娅 | E113: 77.02 | F113: 1 | G113: 46.21 | H113: 第四面试室 | I113: 9 | J113: 83.60 | K113: 33.44 | L113: 79.65 | M113: 1 | N113: 是
A114: 纳雍县珙桐街道 | B114: 04 | C114: 202304055 | D114: 杨伟 | E114: 68.90 | F114: 4 | G114: 41.34 | H114: 第四面试室 | I114: 23 | J114: 84.60 | K114: 33.84 | L114: 75.18 | M114: 2 | N114: 是
A115: 纳雍县珙桐街道 | B115: 04 | C115: 202304043 | D115: 陈凯 | E115: 68.53 | F115: 5 | G115: 41.12 | H115: 第四面试室 | I115: 3 | J115: 83.40 | K115: 33.36 | L115: 74.48 | M115: 3 | N115: 是
A116: 纳雍县珙桐街道 | B116: 04 | C116: 202304159 | D116: 洪贵 | E116: 71.03 | F116: 2 | G116: 42.62 | H116: 第四面试室 | I116: 4 | J116: 76.20 | K116: 30.48 | L116: 73.10 | M116: 4 | N116: 是
A117: 纳雍县珙桐街道 | B117: 04 | C117: 202304052 | D117: 李祥 | E117: 66.48 | F117: 7 | G117: 39.89 | H117: 第四面试室 | I117: 24 | J117: 82.00 | K117: 32.80 | L117: 72.69 | M117: 5 | N117: 是
A118: 纳雍县珙桐街道 | B118: 04 | C118: 202304151 | D118: 郭炜明 | E118: 69.98 | F118: 3 | G118: 41.99 | H118: 第四面试室 | I118: 17 | J118: 75.20 | K118: 30.08 | L118: 72.07 | M118: 6 | N118: 是
A119: 纳雍县珙桐街道 | B119: 04 | C119: 202304147 | D119: 徐富贵 | E119: 68.07 | F119: 6 | G119: 40.84 | H119: 第四面试室 | I119: 13 | J119: 77.80 | K119: 31.12 | L119: 71.96 | M119: 7 | N119: 是
A120: 纳雍县珙桐街道 | B120: 04 | C120: 202304152 | D120: 陈梅 | E120: 66.04 | F120: 8 | G120: 39.62 | H120: 第四面试室 | I120: 22 | J120: 75.60 | K120: 30.24 | L120: 69.86 | M120: 8 | N120: 是
A121: 纳雍县珙桐街道 | B121: 04 | C121: 202304048 | D121: 尚丽 | E121: 62.11 | F121: 15 | G121: 37.27 | H121: 第四面试室 | I121: 19 | J121: 80.80 | K121: 32.32 | L121: 69.59
A122: 纳雍县珙桐街道 | B122: 04 | C122: 202304092 | D122: 陈芳芳 | E122: 62.00 | F122: 16 | G122: 37.20 | H122: 第四面试室 | I122: 10 | J122: 80.80 | K122: 32.32 | L122: 69.52
A123: 纳雍县珙桐街道 | B123: 04 | C123: 202304010 | D123: 沈敏 | E123: 60.46 | F123: 23 | G123: 36.28 | H123: 第四面试室 | I123: 6 | J123: 81.00 | K123: 32.40 | L123: 68.68
A124: 纳雍县珙桐街道 | B124: 04 | C124: 202304074 | D124: 张童银 | E124: 65.02 | F124: 9 | G124: 39.01 | H124: 第四面试室 | I124: 12 | J124: 74.00 | K124: 29.60 | L124: 68.61
A125: 纳雍县珙桐街道 | B125: 04 | C125: 202304025 | D125: 陈伟东 | E125: 61.58 | F125: 17 | G125: 36.95 | H125: 第四面试室 | I125: 11 | J125: 79.00 | K125: 31.60 | L125: 68.55
A126: 纳雍县珙桐街道 | B126: 04 | C126: 202304115 | D126: 吴香 | E126: 60.55 | F126: 21 | G126: 36.33 | H126: 第四面试室 | I126: 18 | J126: 79.80 | K126: 31.92 | L126: 68.25
A127: 纳雍县珙桐街道 | B127: 04 | C127: 202304001 | D127: 李长品 | E127: 62.51 | F127: 13 | G127: 37.51 | H127: 第四面试室 | I127: 1 | J127: 76.80 | K127: 30.72 | L127: 68.23
A128: 纳雍县珙桐街道 | B128: 04 | C128: 202304131 | D128: 黄芳 | E128: 63.02 | F128: 12 | G128: 37.81 | H128: 第四面试室 | I128: 7 | J128: 74.60 | K128: 29.84 | L128: 67.65
A129: 纳雍县珙桐街道 | B129: 04 | C129: 202304127 | D129: 余丹 | E129: 63.63 | F129: 11 | G129: 38.18 | H129: 第四面试室 | I129: 16 | J129: 70.80 | K129: 28.32 | L129: 66.50
A130: 纳雍县珙桐街道 | B130: 04 | C130: 202304060 | D130: 郑磊 | E130: 59.58 | F130: 24 | G130: 35.75 | H130: 第四面试室 | I130: 21 | J130: 76.60 | K130: 30.64 | L130: 66.39
A131: 纳雍县珙桐街道 | B131: 04 | C131: 202304007 | D131: 王礼平 | E131: 60.52 | F131: 22 | G131: =E131*0.6 -> 36.31 | H131: 第四面试室 | I131: 5 | J131: 75.00 | K131: =J131*0.4 -> 30.00 | L131: =G131+K131 -> 66.31
A132: 纳雍县珙桐街道 | B132: 04 | C132: 202304015 | D132: 左丽婷 | E132: 62.49 | F132: 14 | G132: 37.49 | H132: 第四面试室 | I132: 15 | J132: 72.00 | K132: 28.80 | L132: 66.29
A133: 纳雍县珙桐街道 | B133: 04 | C133: 202304003 | D133: 李智 | E133: 61.12 | F133: 18 | G133: 36.67 | H133: 第四面试室 | I133: 2 | J133: 70.00 | K133: 28.00 | L133: 64.67
A134: 纳雍县珙桐街道 | B134: 04 | C134: 202304138 | D134: 朱柏吉 | E134: 64.00 | F134: 10 | G134: 38.40 | H134: 第四面试室 | I134: 20 | J134: 0.00 | K134: 0.00 | L134: 38.40 | O134: 缺考
A135: 纳雍县珙桐街道 | B135: 04 | C135: 202304032 | D135: 杨青 | E135: 60.62 | F135: 19 | G135: 36.37 | H135: 第四面试室 | I135: 14 | J135: 0.00 | K135: 0.00 | L135: 36.37 | O135: 缺考
A136: 纳雍县珙桐街道 | B136: 04 | C136: 202304070 | D136: 安飞飞 | E136: 60.55 | F136: 20 | G136: 36.33 | H136: 第四面试室 | I136: 8 | J136: 0.00 | K136: 0.00 | L136: 36.33 | O136: 缺考
A137: 纳雍县宣慰街道 | B137: 05 | C137: 202305171 | D137: 宋丽霞 | E137: 70.05 | F137: 2 | G137: 42.03 | H137: 第五面试室 | I137: 17 | J137: 86.00 | K137: 34.40 | L137: 76.43 | M137: 1 | N137: 是
A138: 纳雍县宣慰街道 | B138: 05 | C138: 202305111 | D138: 陈平 | E138: 73.13 | F138: 1 | G138: 43.88 | H138: 第五面试室 | I138: 21 | J138: 79.00 | K138: 31.60 | L138: 75.48 | M138: 2 | N138: 是
A139: 纳雍县宣慰街道 | B139: 05 | C139: 202305165 | D139: 胡征跃 | E139: 68.95 | F139: 3 | G139: 41.37 | H139: 第五面试室 | I139: 20 | J139: 84.80 | K139: 33.92 | L139: 75.29 | M139: 3 | N139: 是
A140: 纳雍县宣慰街道 | B140: 05 | C140: 202305083 | D140: 符婷 | E140: 64.52 | F140: 9 | G140: 38.71 | H140: 第五面试室 | I140: 8 | J140: 85.20 | K140: 34.08 | L140: 72.79 | M140: 4 | N140: 是
A141: 纳雍县宣慰街道 | B141: 05 | C141: 202305182 | D141: 肖华健 | E141: 66.01 | F141: 6 | G141: 39.61 | H141: 第五面试室 | I141: 13 | J141: 82.12 | K141: 32.85 | L141: 72.45 | M141: 5 | N141: 是
A142: 纳雍县宣慰街道 | B142: 05 | C142: 202305078 | D142: 余晓月 | E142: 63.94 | F142: 11 | G142: 38.36 | H142: 第五面试室 | I142: 6 | J142: 84.00 | K142: 33.60 | L142: 71.96 | M142: 6 | N142: 是
A143: 纳雍县宣慰街道 | B143: 05 | C143: 202305050 | D143: 聂媛 | E143: 65.14 | F143: 7 | G143: 39.08 | H143: 第五面试室 | I143: 19 | J143: 81.60 | K143: 32.64 | L143: 71.72 | M143: 7 | N143: 是
A144: 纳雍县宣慰街道 | B144: 05 | C144: 202305133 | D144: 何莎 | E144: 65.00 | F144: 8 | G144: 39.00 | H144: 第五面试室 | I144: 18 | J144: 81.00 | K144: 32.40 | L144: 71.40
A145: 纳雍县宣慰街道 | B145: 05 | C145: 202305199 | D145: 刘莹 | E145: 66.06 | F145: 5 | G145: 39.64 | H145: 第五面试室 | I145: 7 | J145: 77.90 | K145: 31.16 | L145: 70.80
A146: 纳雍县宣慰街道 | B146: 05 | C146: 202305137 | D146: 秦瑜 | E146: 60.95 | F146: 19 | G146: 36.57 | H146: 第五面试室 | I146: 9 | J146: 85.30 | K146: 34.12 | L146: 70.69
A147: 纳雍县宣慰街道 | B147: 05 | C147: 202305147 | D147: 张志洁 | E147: 64.05 | F147: 10 | G147: 38.43 | H147: 第五面试室 | I147: 14 | J147: 79.30 | K147: 31.72 | L147: 70.15
A148: 纳雍县宣慰街道 | B148: 05 | C148: 202305196 | D148: 卢琴琴 | E148: 62.54 | F148: 14 | G148: 37.52 | H148: 第五面试室 | I148: 1 | J148: 81.50 | K148: 32.60 | L148: 70.12
A149: 纳雍县宣慰街道 | B149: 05 | C149: 202305052 | D149: 许明 | E149: 62.05 | F149: 15 | G149: 37.23 | H149: 第五面试室 | I149: 16 | J149: 80.60 | K149: 32.24 | L149: 69.47
A150: 纳雍县宣慰街道 | B150: 05 | C150: 202305160 | D150: 刘玉 | E150: 62.03 | F150: 16 | G150: 37.22 | H150: 第五面试室 | I150: 4 | J150: 80.40 | K150: 32.16 | L150: 69.38
A151: 纳雍县宣慰街道 | B151: 05 | C151: 202305104 | D151: 罗以 | E151: 60.97 | F151: 18 | G151: 36.58 | H151: 第五面试室 | I151: 11 | J151: 80.50 | K151: 32.20 | L151: 68.78
A152: 纳雍县宣慰街道 | B152: 05 | C152: 202305007 | D152: 岳霖 | E152: 61.57 | F152: 17 | G152: 36.94 | H152: 第五面试室 | I152: 22 | J152: 79.00 | K152: 31.60 | L152: 68.54
A153: 纳雍县宣慰街道 | B153: 05 | C153: 202305063 | D153: 姜红 | E153: 66.49 | F153: 4 | G153: 39.89 | H153: 第五面试室 | I153: 12 | J153: 70.20 | K153: 28.08 | L153: 67.97
A154: 纳雍县宣慰街道 | B154: 05 | C154: 202305029 | D154: 何云丽 | E154: 60.69 | F154: 20 | G154: 36.41 | H154: 第五面试室 | I154: 2 | J154: 76.20 | K154: 30.48 | L154: 66.89
A155: 纳雍县宣慰街道 | B155: 05 | C155: 202305176 | D155: 蒙凯 | E155: 60.60 | F155: 21 | G155: 36.36 | H155: 第五面试室 | I155: 15 | J155: 76.30 | K155: 30.52 | L155: 66.88
A156: 纳雍县宣慰街道 | B156: 05 | C156: 202305130 | D156: 罗璐璐 | E156: 60.60 | F156: 21 | G156: 36.36 | H156: 第五面试室 | I156: 10 | J156: 71.40 | K156: 28.56 | L156: 64.92
A157: 纳雍县宣慰街道 | B157: 05 | C157: 202305175 | D157: 杜婷 | E157: 63.53 | F157: 12 | G157: 38.12 | H157: 第五面试室 | I157: 3 | J157: 0.00 | K157: 0.00 | L157: 38.12 | O157: 缺考
A158: 纳雍县宣慰街道 | B158: 05 | C158: 202305013 | D158: 王力贤 | E158: 63.06 | F158: 13 | G158: 37.84 | H158: 第五面试室 | I158: 5 | J158: 0.00 | K158: 0.00 | L158: 37.84 | O158: 缺考
A159: 纳雍县雍熙街道 | B159: 06 | C159: 202306094 | D159: 杨亮 | E159: 76.07 | F159: 1 | G159: 45.64 | H159: 第六面试室 | I159: 34 | J159: 85.38 | K159: 34.15 | L159: 79.79 | M159: 1 | N159: 是
A160: 纳雍县雍熙街道 | B160: 06 | C160: 202306019 | D160: 卢林 | E160: 73.01 | F160: 2 | G160: 43.81 | H160: 第六面试室 | I160: 16 | J160: 83.42 | K160: 33.37 | L160: 77.17 | M160: 2 | N160: 是
A161: 纳雍县雍熙街道 | B161: 06 | C161: 202306064 | D161: 宋其林 | E161: 68.73 | F161: 5 | G161: 41.24 | H161: 第六面试室 | I161: 20 | J161: 81.80 | K161: 32.72 | L161: 73.96 | M161: 3 | N161: 是
A162: 纳雍县雍熙街道 | B162: 06 | C162: 202306116 | D162: 颜丽敏 | E162: 67.46 | F162: 9 | G162: 40.48 | H162: 第六面试室 | I162: 19 | J162: 82.52 | K162: 33.01 | L162: 73.48 | M162: 4 | N162: 是
A163: 纳雍县雍熙街道 | B163: 06 | C163: 202306009 | D163: 詹卢兰 | E163: 66.44 | F163: 13 | G163: 39.86 | H163: 第六面试室 | I163: 21 | J163: 83.12 | K163: 33.25 | L163: 73.11 | M163: 5 | N163: 是
A164: 纳雍县雍熙街道 | B164: 06 | C164: 202306041 | D164: 熊贤艳 | E164: 65.09 | F164: 17 | G164: 39.05 | H164: 第六面试室 | I164: 15 | J164: 84.76 | K164: 33.90 | L164: 72.96 | M164: 6 | N164: 是
A165: 纳雍县雍熙街道 | B165: 06 | C165: 202306022 | D165: 吉丽洁 | E165: 66.59 | F165: 11 | G165: 39.95 | H165: 第六面试室 | I165: 23 | J165: 82.12 | K165: 32.85 | L165: 72.80 | M165: 7 | N165: 是
A166: 纳雍县雍熙街道 | B166: 06 | C166: 202306167 | D166: 王浚鑫 | E166: 67.67 | F166: 8 | G166: 40.60 | H166: 第六面试室 | I166: 18 | J166: 80.30 | K166: 32.12 | L166: 72.72 | M166: 8 | N166: 是
A167: 纳雍县雍熙街道 | B167: 06 | C167: 202306131 | D167: 邓芙蓉 | E167: 69.02 | F167: 4 | G167: 41.41 | H167: 第六面试室 | I167: 11 | J167: 77.52 | K167: 31.01 | L167: 72.42 | M167: 9 | N167: 是
A168: 纳雍县雍熙街道 | B168: 06 | C168: 202306083 | D168: 裴裕琴 | E168: 64.58 | F168: 19 | G168: 38.75 | H168: 第六面试室 | I168: 29 | J168: 82.88 | K168: 33.15 | L168: 71.90 | M168: 10 | N168: 是
A169: 纳雍县雍熙街道 | B169: 06 | C169: 202306013 | D169: 卢月 | E169: 62.99 | F169: 26 | G169: 37.79 | H169: 第六面试室 | I169: 8 | J169: 84.72 | K169: 33.89 | L169: 71.68 | M169: 11 | N169: 是
A170: 纳雍县雍熙街道 | B170: 06 | C170: 202306135 | D170: 王彩云 | E170: 63.55 | F170: 23 | G170: 38.13 | H170: 第六面试室 | I170: 25 | J170: 83.44 | K170: 33.38 | L170: 71.51
A171: 纳雍县雍熙街道 | B171: 06 | C171: 202306031 | D171: 代青前 | E171: 68.09 | F171: 6 | G171: 40.85 | H171: 第六面试室 | I171: 30 | J171: 76.38 | K171: 30.55 | L171: 71.41
A172: 纳雍县雍熙街道 | B172: 06 | C172: 202306082 | D172: 陈玥 | E172: 66.58 | F172: 12 | G172: 39.95 | H172: 第六面试室 | I172: 32 | J172: 78.46 | K172: 31.38 | L172: 71.33
A173: 纳雍县雍熙街道 | B173: 06 | C173: 202306054 | D173: 高会 | E173: 66.00 | F173: 15 | G173: 39.60 | H173: 第六面试室 | I173: 14 | J173: 79.16 | K173: 31.66 | L173: 71.26
A174: 纳雍县雍熙街道 | B174: 06 | C174: 202306087 | D174: 陈洁 | E174: 66.10 | F174: 14 | G174: 39.66 | H174: 第六面试室 | I174: 7 | J174: 78.54 | K174: 31.42 | L174: 71.08
A175: 纳雍县雍熙街道 | B175: 06 | C175: 202306005 | D175: 张顶香 | E175: 63.15 | F175: 24 | G175: 37.89 | H175: 第六面试室 | I175: 4 | J175: 82.90 | K175: 33.16 | L175: 71.05
A176: 纳雍县雍熙街道 | B176: 06 | C176: 202306007 | D176: 程辽 | E176: 64.48 | F176: 20 | G176: 38.69 | H176: 第六面试室 | I176: 5 | J176: 80.74 | K176: 32.30 | L176: 70.98
A177: 纳雍县雍熙街道 | B177: 06 | C177: 202306093 | D177: 龙群 | E177: 63.61 | F177: 21 | G177: 38.17 | H177: 第六面试室 | I177: 1 | J177: 81.84 | K177: 32.74 | L177: 70.90
A178: 纳雍县雍熙街道 | B178: 06 | C178: 202306124 | D178: 钱顺庆 | E178: 63.08 | F178: 25 | G178: 37.85 | H178: 第六面试室 | I178: 24 | J178: 81.54 | K178: 32.62 | L178: 70.46
A179: 纳雍县雍熙街道 | B179: 06 | C179: 202306004 | D179: 张伦 | E179: 67.03 | F179: 10 | G179: 40.22 | H179: 第六面试室 | I179: 10 | J179: 75.08 | K179: 30.03 | L179: 70.25
A180: 纳雍县雍熙街道 | B180: 06 | C180: 202306175 | D180: 张玉薇 | E180: 61.47 | F180: 32 | G180: 36.88 | H180: 第六面试室 | I180: 6 | J180: 82.90 | K180: 33.16 | L180: 70.04
A181: 纳雍县雍熙街道 | B181: 06 | C181: 202306027 | D181: 朱梅 | E181: 65.60 | F181: 16 | G181: 39.36 | H181: 第六面试室 | I181: 12 | J181: 75.36 | K181: 30.14 | L181: 69.50
A182: 纳雍县雍熙街道 | B182: 06 | C182: 202306046 | D182: 游宇星 | E182: 63.56 | F182: 22 | G182: 38.14 | H182: 第六面试室 | I182: 17 | J182: 76.62 | K182: 30.65 | L182: 68.78
A183: 纳雍县雍熙街道 | B183: 06 | C183: 202306042 | D183: 张玉立 | E183: 62.43 | F183: 28 | G183: 37.46 | H183: 第六面试室 | I183: 31 | J183: 77.54 | K183: 31.02 | L183: 68.47
A184: 纳雍县雍熙街道 | B184: 06 | C184: 202306161 | D184: 李玉莲 | E184: 61.49 | F184: 31 | G184: 36.89 | H184: 第六面试室 | I184: 2 | J184: 77.64 | K184: 31.06 | L184: 67.95
A185: 纳雍县雍熙街道 | B185: 06 | C185: 202306144 | D185: 杨洋 | E185: 64.99 | F185: 18 | G185: 38.99 | H185: 第六面试室 | I185: 9 | J185: 71.98 | K185: 28.79 | L185: 67.79
A186: 纳雍县雍熙街道 | B186: 06 | C186: 202306173 | D186: 蔡悦 | E186: 62.61 | F186: 27 | G186: 37.57 | H186: 第六面试室 | I186: 3 | J186: 75.50 | K186: 30.20 | L186: 67.77
A187: 纳雍县雍熙街道 | B187: 06 | C187: 202306057 | D187: 卢娇 | E187: 61.06 | F187: 33 | G187: 36.64 | H187: 第六面试室 | I187: 13 | J187: 76.94 | K187: 30.78 | L187: 67.41
A188: 纳雍县雍熙街道 | B188: 06 | C188: 202306096 | D188: 张玉 | E188: 61.55 | F188: 30 | G188: 36.93 | H188: 第六面试室 | I188: 28 | J188: 74.50 | K188: 29.80 | L188: 66.73
A189: 纳雍县雍熙街道 | B189: 06 | C189: 202306126 | D189: 陈武齐 | E189: 61.06 | F189: 33 | G189: 36.64 | H189: 第六面试室 | I189: 33 | J189: 71.38 | K189: 28.55 | L189: 65.19
A190: 纳雍县雍熙街道 | B190: 06 | C190: 202306185 | D190: 张佰玉 | E190: 70.02 | F190: 3 | G190: 42.01 | H190: 第六面试室 | I190: 26 | J190: 0.00 | K190: 0.00 | L190: 42.01 | O190: 缺考
A191: 纳雍县雍熙街道 | B191: 06 | C191: 202306148 | D191: 张慧 | E191: 67.84 | F191: 7 | G191: 40.70 | H191: 第六面试室 | I191: 27 | J191: 0.00 | K191: 0.00 | L191: 40.70 | O191: 缺考
A192: 纳雍县雍熙街道 | B192: 06 | C192: 202306078 | D192: 唐江兰 | E192: 61.94 | F192: 29 | G192: 37.16 | H192: 第六面试室 | I192: 22 | J192: 0.00 | K192: 0.00 | L192: 37.16 | O192: 缺考
A193: 纳雍县雍熙街道 | B193: 07 | C193: 202307114 | D193: 胡维 | E193: 76.01 | F193: 1 | G193: 45.61 | H193: 第七面试室 | I193: 9 | J193: 85.80 | K193: 34.32 | L193: 79.93 | M193: 1 | N193: 是
A194: 纳雍县雍熙街道 | B194: 07 | C194: 202307189 | D194: 熊艳 | E194: 70.16 | F194: 3 | G194: 42.10 | H194: 第七面试室 | I194: 11 | J194: 83.30 | K194: 33.32 | L194: 75.42 | M194: 2 | N194: 是
A195: 纳雍县雍熙街道 | B195: 07 | C195: 202307095 | D195: 杨红梅 | E195: 71.99 | F195: 2 | G195: =E195*0.6 -> 43.19 | H195: 第七面试室 | I195: 13 | J195: 79.82 | K195: =J195*0.4 -> 31.93 | L195: =G195+K195 -> 75.12 | M195: 3 | N195: 是
A196: 纳雍县雍熙街道 | B196: 07 | C196: 202307109 | D196: 郭宏杰 | E196: 66.12 | F196: 10 | G196: 39.67 | H196: 第七面试室 | I196: 5 | J196: 87.54 | K196: 35.02 | L196: 74.69 | M196: 4 | N196: 是
A197: 纳雍县雍熙街道 | B197: 07 | C197: 202307019 | D197: 付儒鹤 | E197: 68.53 | F197: 4 | G197: 41.12 | H197: 第七面试室 | I197: 27 | J197: 82.14 | K197: 32.86 | L197: 73.97 | M197: 5 | N197: 是
A198: 纳雍县雍熙街道 | B198: 07 | C198: 202307194 | D198: 王何 | E198: 67.02 | F198: 6 | G198: 40.21 | H198: 第七面试室 | I198: 12 | J198: 81.56 | K198: 32.62 | L198: 72.84 | M198: 6 | N198: 是
A199: 纳雍县雍熙街道 | B199: 07 | C199: 202307160 | D199: 陈琳琳 | E199: 65.98 | F199: 11 | G199: 39.59 | H199: 第七面试室 | I199: 34 | J199: 82.94 | K199: 33.18 | L199: 72.76 | M199: 7 | N199: 是
A200: 纳雍县雍熙街道 | B200: 07 | C200: 202307175 | D200: 郑秋平 | E200: 67.04 | F200: 5 | G200: 40.22 | H200: 第七面试室 | I200: 20 | J200: 80.50 | K200: 32.20 | L200: 72.42 | M200: 8 | N200: 是
... 28 more rows
